bitfinex/quotes_ETHUSD_20241119
["timestamp","ask_amount","ask_price","bid_price","bid_amount"]
[1731994071647,0.45010216,3121.6,3121.5,3.20358]
[1731994073228,0.46423253,3121.9,3121.8,3.20328]
[1731994073412,0.91449785,3121.9,3121.8,3.20328]
[1731994073617,0.45026532,3121.9,3121.8,3.20328]
[1731994074226,0.01,3122.3,3122.1,3.20295]
[1731994074422,0.45032762,3122.2,3122.1,3.20295]
[1731994074856,0.01,3122.5,3122.3,3.20273]
[1731994075063,0.29024769,3122.4,3122.3,3.20273]
[1731994075843,0.16007812,3122.7,3122.5,3.20256]
[1731994076042,0.29018813,3122.6,3122.5,3.20256]
[1731994076270,0.01,3123.1,3122.5,3.20256]
[1731994076580,0.28989805,3123.0,3122.7,3.20228]
[1731994076789,3.23873443,3123.5,3122.4,3.78268776]
[1731994076790,0.34673213,3123.5,3122.8,3.20215]
[1731994076958,0.92383857,3123.4,3122.8,3.20215]
[1731994077284,0.28991875,3123.3,3122.8,3.20215]
[1731994077441,0.28991875,3123.2,3122.7,3.20232]
[1731994077636,0.01,3123.4,3122.8,3.20222]
[1731994077979,0.28963069,3123.3,3122.9,3.20209]
[1731994078182,0.01,3123.4,3122.9,3.20209]
[1731994078339,0.28965826,3123.3,3122.7,0.7786]
[1731994078536,0.01,3123.6,3122.7,0.7786]
[1731994078537,0.28965826,3123.5,3122.9,3.20206]
[1731994078769,0.2894101,3123.4,3122.9,3.20206]
[1731994078976,0.04719443,3123.6,3122.7,3.98091]
[1731994079194,0.65985571,3123.5,3122.9,3.20208]
[1731994079401,0.01,3123.6,3122.9,3.20208]
[1731994079691,0.37024497,3123.5,3122.9,3.20208]
[1731994079903,0.01,3123.6,3122.9,3.20208]
[1731994080054,0.01,3122.8,3122.5,35.0]
[1731994080397,0.01,3122.8,3122.1,3.20287]
[1731994080706,0.01,3123.2,3122.3,0.7786]
[1731994080988,0.01,3123.2,3122.3,4.04537209]
[1731994080989,3.43342824,3123.1,3122.3,4.04537209]
[1731994081199,0.23148912,3123.0,3122.3,0.7786]
[1731994081366,0.23148912,3122.9,3122.5,3.20254]
[1731994081552,0.04719443,3123.2,3122.5,3.20254]
[1731994081753,0.01,3123.2,3122.6,3.20245]
[1731994082183,0.89113543,3123.1,3122.6,3.20245]
[1731994082355,0.2314639,3123.0,3122.6,3.20245]
[1731994082555,0.2314639,3122.9,3122.4,3.20266]
[1731994082797,0.2314639,3122.8,3122.6,3.20243]
[1731994083033,0.01,3123.2,3122.4,3.20266]
[1731994083034,0.37041267,3123.1,3122.7,3.20234]
[1731994083237,0.60218668,3123.0,3122.9,3.20215]
[1731994083549,0.23150556,3123.0,3122.9,3.20215]
[1731994083695,0.37062023,3123.3,3123.0,3.202]
[1731994084034,0.23163739,3123.2,3123.0,3.20202]
[1731994084265,0.00716875,3121.8,3121.7,0.7794]
[1731994084534,0.00716875,3121.8,3121.7,6.98278]
[1731994084737,0.00716875,3121.8,3121.7,41.98278]
[1731994085093,0.00716875,3121.8,3121.7,42.30258]
[1731994085841,0.00716875,3121.8,3121.7,42.31258]
[1731994086250,0.00716875,3121.8,3121.7,45.45357947]
[1731994086543,0.89283121,3123.1,3123.0,3.20204]
[1731994086848,0.89283121,3123.1,3122.6,0.3198]
[1731994086849,0.60295348,3123.1,3122.6,0.3198]
[1731994087072,0.23190518,3123.0,3122.8,0.3198]
[1731994087360,0.01,3123.6,3123.3,3.20166]
[1731994087661,0.01,3123.6,3122.9,4.57718776]
[1731994087662,0.892992,3123.5,3123.4,3.20161]
[1731994088362,0.2319469,3123.5,3123.4,3.20161]
[1731994089050,0.2319469,3123.5,3123.4,3.52141]
[1731994089258,0.53131986,3124.1,3123.8,3.20116]
[1731994089414,0.60330298,3124.0,3123.8,3.20116]
[1731994089612,0.23199974,3123.9,3123.8,3.20116]
[1731994090215,0.01,3124.4,3124.2,3.20081]
[1731994090410,0.60323248,3124.3,3124.2,3.20081]
[1731994090733,0.01,3125.0,3124.6,3.20038]
[1731994090918,0.30901506,3125.2,3124.6,3.20038]
[1731994090919,0.60334802,3124.9,3124.6,3.20038]
[1731994091115,0.23205693,3124.8,3124.6,3.20039]
[1731994091356,0.23205693,3124.7,3124.6,3.20039]
[1731994091519,0.37125841,3125.1,3124.7,3.20028]
[1731994091850,0.23204346,3125.0,3124.7,3.20028]
[1731994092064,0.23204346,3124.9,3124.7,3.20028]
[1731994092352,0.01,3125.2,3124.7,3.20028]
[1731994093419,0.01,3124.4,3123.8,0.8148]
[1731994093618,0.01,3124.0,3122.8,0.7895]
[1731994093823,0.01,3123.8,3122.9,3.20207]
[1731994094022,0.23196184,3123.7,3123.1,3.20186]
[1731994094252,0.23196184,3123.6,3123.1,3.20187]
[1731994094565,3.21124,3123.8,3123.1,3.20187]
[1731994094566,0.01,3123.8,3123.1,3.20187]
[1731994094714,0.23212925,3123.7,3123.1,3.20187]
[1731994094915,0.23212925,3123.6,3123.3,3.20173]
[1731994095109,0.01,3123.8,3123.3,3.20173]
[1731994095364,0.23231924,3123.7,3123.3,3.20173]
[1731994095673,0.01,3125.5,3124.4,3.99201]
[1731994095954,0.37186759,3125.4,3125.3,3.19969]
[1731994096159,0.37194029,3125.7,3125.3,6.98237776]
[1731994096464,0.01,3125.9,3125.3,3.19969]
[1731994096769,0.01,3125.6,3124.7,3.52009]
[1731994096924,0.01,3125.2,3124.6,3.20034]
[1731994098777,0.01,3125.2,3124.7,3.20027]
[1731994098945,0.308,3125.4,3124.8,3.20018]
[1731994098946,0.318,3125.4,3124.8,3.20018]
[1731994099141,0.318,3125.4,3124.6,3.20034]
[1731994099142,0.318,3125.4,3124.9,3.20008]
[1731994099532,0.01,3125.2,3124.9,3.20008]
[1731994099869,0.318,3125.4,3124.9,3.20008]
[1731994100458,0.37290884,3125.7,3125.1,3.19982]
[1731994100694,0.318,3125.8,3125.1,3.19982]
[1731994100829,0.01,3125.8,3125.4,3.19955]
[1731994101031,0.01,3125.8,3125.3,3.19961]
[1731994101332,0.373133,3125.8,3125.7,3.19922]
[1731994101571,0.37317549,3126.5,3125.6,3.19938]
[1731994101740,3.19775,3127.2,3125.6,3.19938]
[1731994101741,0.308,3128.0,3126.4,0.837]
[1731994102074,0.308,3128.0,3125.8,0.3198]
[1731994102075,0.01,3127.1,3126.3,4.16685171]
[1731994102240,0.01,3127.1,3126.5,3.19837]
[1731994102644,0.01,3127.1,3126.7,3.19825]
[1731994102969,0.01,3127.1,3126.6,3.19835]
[1731994103394,0.01,3127.1,3126.3,4.16685171]
[1731994103573,0.01,3127.3,3126.7,3.19823]
[1731994104081,0.01,3127.3,3126.8,3.19813]
[1731994104252,0.01,3127.3,3126.7,3.19822]
[1731994104453,0.01,3127.3,3126.5,3.19845]
[1731994104645,0.01,3127.3,3126.8,3.19812]
[1731994104846,0.01,3127.3,3126.5,6.39683]
[1731994105047,0.01,3127.3,3126.5,3.19838]
[1731994105359,0.01,3127.3,3126.7,3.19817]
[1731994105962,0.01,3127.3,3126.3,4.16685171]
[1731994106296,0.01,3127.3,3126.8,3.19812]
[1731994106710,0.01,3127.7,3126.8,7.36497171]
[1731994106859,0.01,3127.7,3127.1,3.19784]
[1731994107257,0.308,3128.0,3126.9,4.01385]
[1731994107258,0.01,3127.9,3126.9,4.01385]
[1731994107457,3.20703,3127.9,3127.2,3.19774]
[1731994109461,0.01,3127.7,3126.9,3.19805]
[1731994109665,3.19735,3127.6,3126.9,3.19805]
[1731994110094,3.19744,3127.5,3126.8,4.16685171]
[1731994110311,3.19744,3127.5,3126.8,7.36497171]
[1731994110461,3.20727,3127.7,3126.9,3.19805]
[1731994111202,0.01,3127.7,3126.8,4.16685171]
[1731994111407,0.01,3127.1,3126.5,0.7608]
[1731994111710,0.01,3127.1,3126.1,0.7578]
[1731994111711,3.19822,3126.8,3126.1,0.7578]
[1731994112063,3.19806,3126.9,3126.1,3.95666]
[1731994112374,3.19806,3126.9,3126.2,3.19875]
[1731994112587,3.19806,3126.9,3126.1,3.95666]
[1731994113228,3.19806,3126.9,3126.1,0.7578]
[1731994113414,3.19806,3126.9,3126.2,3.19875]
[1731994113609,3.20806,3126.9,3126.2,3.19875]
[1731994114133,3.20806,3126.9,3126.0,3.19895]
[1731994114339,3.19826,3126.7,3126.0,3.19895]
[1731994114498,3.20806,3126.9,3126.0,3.19895]
[1731994115043,3.20806,3126.9,3126.2,3.19874]
[1731994115335,3.20806,3126.9,3126.2,3.19871]
[1731994115547,3.20806,3126.9,3126.3,3.19866]
[1731994115838,3.20806,3126.9,3126.0,3.19895]
[1731994116025,3.2083,3126.7,3126.1,0.3198]
[1731994116226,3.2083,3126.7,3126.2,0.3198]
[1731994116938,3.1983,3126.7,3126.2,0.3198]
[1731994117102,3.20806,3126.9,3126.2,0.3198]
[1731994117298,3.20806,3126.9,3126.3,0.3198]
[1731994117609,3.19816,3126.8,3126.3,0.3198]
[1731994117815,3.20826,3126.7,3126.3,0.3198]
[1731994118348,3.20826,3126.7,3126.4,0.3198]
[1731994118867,3.19676,3128.2,3127.3,3.19764]
[1731994119148,0.53485925,3128.1,3127.4,3.19754]
[1731994119299,0.01,3128.1,3127.4,3.19754]
[1731994119628,0.318,3127.9,3127.3,3.51742]
[1731994119801,0.308,3127.9,3127.3,3.51744]
[1731994119996,0.308,3127.9,3127.3,0.3198]
[1731994120252,0.01,3128.1,3127.7,0.3198]
[1731994121245,3.20692,3128.1,3127.7,0.3198]
[1731994121411,0.01,3128.1,3127.7,0.3198]
[1731994121612,0.01,3127.6,3127.3,0.3198]
[1731994122230,0.01,3127.6,3127.1,0.3198]
[1731994122615,0.01,3127.6,3127.1,3.51764]
[1731994123717,3.20713,3127.8,3127.1,3.51764]
[1731994124244,0.01,3128.1,3127.3,0.3198]
[1731994124479,0.29180812,3128.1,3127.5,1.1196]
[1731994124627,0.308,3128.7,3127.9,7.67861379]
[1731994124832,0.30217679,3128.5,3127.9,4.48166379]
[1731994125074,0.01,3128.5,3128.1,3.19681]
[1731994125226,0.01,3128.5,3128.0,3.19693]
[1731994125425,0.29259292,3128.4,3128.0,3.19693]
[1731994125727,0.01,3128.5,3128.1,3.19681]
[1731994125959,0.2925081,3128.4,3128.1,3.19681]
[1731994126138,0.01,3128.5,3128.1,3.19681]
[1731994126358,0.01,3128.5,3127.9,7.35881379]
[1731994126359,0.29250177,3128.4,3127.9,7.35881379]
[1731994126528,0.01,3128.5,3127.9,7.35881379]
[1731994126728,0.29248314,3128.4,3127.9,7.35881379]
[1731994127025,0.01,3128.5,3127.9,7.35881379]
[1731994127231,0.2924855,3128.4,3128.0,0.06392693]
[1731994127449,0.01,3128.5,3127.9,4.16186379]
[1731994127450,0.2924855,3128.3,3127.9,4.16186379]
[1731994127651,3.20647,3128.5,3127.9,4.16186379]
[1731994127967,0.29258869,3128.4,3127.9,7.4228214]
[1731994128174,0.29258869,3128.3,3127.9,7.35889379]
[1731994128401,0.01,3128.5,3127.9,7.35889379]
[1731994128707,0.2927351,3128.4,3127.9,7.35889379]
[1731994128907,0.2927351,3128.4,3128.0,4.00394]
[1731994129072,0.01,3128.5,3128.0,4.00394]
[1731994129411,0.29273055,3128.4,3128.0,4.06786675]
[1731994129577,0.29273055,3128.3,3128.0,4.00394]
[1731994129771,3.19623,3128.7,3128.1,3.19681]
[1731994130081,0.29290272,3128.6,3128.3,3.1966]
[1731994130263,0.29290272,3128.5,3128.3,3.1966]
[1731994130464,3.51383,3129.1,3128.2,0.06392353]
[1731994130687,3.48897233,3129.0,3128.4,3.19651]
[1731994130887,3.19591,3129.0,3128.4,3.19651]
[1731994131099,3.19591,3129.0,3128.2,3.26058353]
[1731994131405,3.19591,3129.0,3128.2,0.06392353]
[1731994131704,3.19604,3128.9,3128.3,3.26050302]
[1731994132062,6.51382,3129.1,3128.3,3.26050302]
[1731994132266,6.20582,3129.1,3128.3,3.98853134]
[1731994132710,6.20581,3129.1,3128.3,0.06391302]
[1731994132916,3.19608,3128.9,3128.2,3.2605374]
[1731994134503,3.20581,3129.1,3128.2,3.2605374]
[1731994134710,3.20581,3129.1,3128.4,3.19645]
[1731994134866,3.20569,3129.3,3128.6,4.0289]
[1731994135231,3.20569,3129.3,3128.7,0.3198]
[1731994135711,3.19559,3129.4,3128.7,0.3198]
[1731994135944,3.19559,3129.4,3128.8,3.25999877]
[1731994137050,3.1957,3129.2,3128.8,0.06390877]
[1731994137214,3.1957,3129.2,3128.7,0.3837097]
[1731994137399,0.01,3129.5,3128.7,0.3837097]
[1731994137400,3.1957,3129.3,3128.7,0.3837097]
[1731994138143,0.01,3129.5,3128.7,0.3837097]
[1731994138338,3.19567,3129.3,3128.7,0.3837097]
[1731994138640,3.19571,3129.2,3128.7,0.3837097]
[1731994139512,3.19557,3129.4,3128.7,3.5799097]
[1731994139841,3.19561,3129.3,3128.7,3.5799097]
[1731994140746,3.20542,3129.5,3128.7,0.3837097]
[1731994141040,3.19567,3129.3,3128.7,0.3837097]
[1731994141547,3.19608,3128.9,3128.3,3.3198]
[1731994141857,3.19622,3128.7,3128.3,0.36695095]
[1731994142015,3.19622,3128.7,3127.9,4.16186379]
[1731994142016,0.308,3129.0,3127.8,3.95631]
[1731994142206,0.01,3128.7,3127.8,0.7592]
[1731994142605,3.19669,3128.3,3127.9,0.3198]
[1731994143041,3.19693,3128.0,3127.9,0.3198]
[1731994143613,3.19693,3128.0,3127.6,0.3198]
[1731994145223,3.19672,3128.2,3127.6,0.3198]
[1731994145417,3.19662,3128.3,3127.6,0.3198]
[1731994145754,3.19685,3128.1,3127.6,0.3198]
[1731994146434,3.19693,3128.0,3127.6,0.3198]
[1731994146603,0.01,3128.3,3127.6,0.3198]
[1731994146808,3.1969,3128.1,3127.6,0.3198]
[1731994147009,3.19687,3128.1,3127.6,0.3198]
[1731994148049,3.19693,3128.0,3127.6,0.3198]
[1731994148407,3.19731,3127.7,3127.2,3.3198]
[1731994148607,3.19731,3127.7,3127.2,0.3198]
[1731994149346,3.19752,3127.5,3127.2,0.3198]
[1731994150050,0.01,3127.7,3127.3,35.0]
[1731994150349,3.19753,3127.5,3127.3,35.0]
[1731994150518,0.01,3127.5,3127.3,35.0]
[1731994150896,3.20745,3127.5,3127.3,35.0]
[1731994151051,3.19754,3127.4,3127.3,35.0]
[1731994152717,3.19765,3127.3,3126.8,4.46247023]
[1731994152924,3.19765,3127.3,3126.8,0.821]
[1731994153147,3.19765,3127.3,3126.9,35.0]
[1731994153707,0.01,3127.8,3127.0,3.14099947]
[1731994153934,0.318,3128.1,3127.3,3.19754]
[1731994154122,3.19705,3127.9,3127.3,3.19754]
[1731994154350,3.19683,3128.1,3127.5,3.19743]
[1731994154541,3.20683,3128.1,3127.5,0.06393599]
[1731994154761,3.19683,3128.1,3127.5,0.06393599]
[1731994155131,3.19696,3128.0,3127.6,35.0]
[1731994156146,3.19723,3127.7,3127.6,35.0]
[1731994156328,3.19714,3127.8,3127.6,35.0]
[1731994156830,3.19723,3127.7,3127.6,35.0]
[1731994157260,3.19723,3127.7,3127.1,0.7754]
[1731994157261,3.19752,3127.5,3127.1,0.7754]
[1731994157674,3.19752,3127.5,3127.2,35.0]
[1731994158438,3.19735,3127.6,3127.2,35.0]
[1731994158636,3.20726,3127.7,3127.2,35.5991869]
[1731994159288,3.19745,3127.5,3127.2,35.0]
[1731994159485,0.308,3127.4,3127.2,35.0]
[1731994159830,3.19764,3127.3,3127.2,35.0]
[1731994160032,3.19764,3127.3,3126.8,0.3198]
[1731994160273,3.1978,3127.2,3126.8,0.3198]
[1731994161166,3.1978,3127.2,3126.7,0.3198]
[1731994161456,3.2078,3127.2,3126.7,0.3198]
[1731994161667,3.19786,3127.1,3126.7,0.3198]
[1731994161829,0.01,3127.2,3126.9,0.3198]
[1731994162037,3.19785,3127.1,3126.9,0.3198]
[1731994162650,0.01,3127.2,3126.9,0.3198]
[1731994162982,3.20776,3127.2,3127.0,35.0]
[1731994163341,3.19785,3127.1,3127.0,35.0]
[1731994163571,3.20751,3127.5,3127.0,38.14099947]
[1731994164071,3.19755,3127.4,3127.1,0.3198]
[1731994164281,3.19767,3127.3,3127.1,0.3198]
[1731994164577,3.20751,3127.5,3127.1,0.3198]
[1731994164759,3.19774,3127.2,3127.1,0.3198]
[1731994165435,3.19785,3127.1,3127.0,35.0]
[1731994166140,0.318,3127.1,3126.0,0.7883]
[1731994166340,3.19856,3126.4,3126.0,0.7883]
[1731994166648,3.19856,3126.4,3125.7,1.1081]
[1731994166649,3.19896,3126.1,3125.7,1.1081]
[1731994166849,3.19879,3126.2,3125.7,1.1081]
[1731994167077,3.19879,3126.2,3125.7,1.538851]
[1731994167279,3.19879,3126.2,3125.8,35.3198]
[1731994167451,3.19866,3126.3,3125.8,35.3198]
[1731994168082,3.19886,3126.2,3125.8,35.3198]
[1731994168286,3.19866,3126.3,3125.8,35.3198]
[1731994168485,3.19889,3126.1,3125.8,35.3198]
[1731994168640,3.19889,3126.1,3125.8,37.12945982]
[1731994169887,0.01,3126.4,3125.8,37.12945982]
[1731994170185,3.19898,3126.0,3125.8,37.12945982]
[1731994170392,3.19866,3126.3,3125.8,0.3198]
[1731994170575,3.19895,3126.1,3125.8,0.3198]
[1731994170749,3.19895,3126.1,3125.7,35.7883]
[1731994171552,3.19895,3126.1,3125.7,36.1081]
[1731994172456,3.19895,3126.1,3125.7,39.11143229]
[1731994173246,3.19895,3126.1,3125.7,36.1081]
[1731994173493,3.19899,3126.0,3125.7,35.3198]
[1731994173790,3.20915,3125.9,3125.7,35.3198]
[1731994174187,3.19918,3125.8,3125.7,35.3198]
[1731994174859,3.2091,3125.9,3125.7,35.3198]
[1731994175063,3.2091,3125.9,3125.7,35.0]
[1731994175906,3.19918,3125.8,3125.7,35.0]
[1731994176550,3.19918,3125.8,3125.4,0.7701]
[1731994176891,0.01,3125.9,3125.4,0.7701]
[1731994177073,0.01,3125.9,3125.5,35.0]
[1731994177302,3.20909,3125.9,3125.5,35.0]
[1731994177511,0.01,3125.9,3125.5,35.0]
[1731994177712,3.20909,3125.9,3125.5,35.0]
[1731994177916,0.01,3126.1,3125.5,38.14099947]
[1731994178209,3.20869,3126.3,3125.6,3.19931]
[1731994178819,3.20869,3126.3,3125.7,35.0]
[1731994179369,0.01,3126.3,3125.8,3.19915]
[1731994179910,0.01,3126.3,3125.9,0.8138]
[1731994180068,0.01,3126.3,3125.9,35.8138]
[1731994180468,3.19887,3126.2,3125.9,35.0]
[1731994180706,3.19888,3126.1,3125.9,35.0]
[1731994181317,3.19897,3126.0,3125.9,35.0]
[1731994184983,6.20863,3126.4,3125.9,35.0]
[1731994185178,3.20863,3126.4,3125.9,35.0]
[1731994187212,3.20897,3126.0,3125.9,35.0]
[1731994187424,3.19907,3125.9,3125.3,0.7782]
[1731994188020,3.19907,3125.9,3125.4,35.0]
[1731994189159,0.308,3126.3,3125.6,3.19931]
[1731994189160,3.20867,3126.3,3125.6,3.19931]
[1731994189308,3.1988,3126.2,3125.7,0.98301121]
[1731994189738,3.1988,3126.2,3125.8,35.0]
[1731994191449,0.01,3126.3,3125.8,35.0]
[1731994191450,0.01,3126.3,3125.8,38.19916]
[1731994192450,3.19857,3126.4,3125.8,38.19916]
[1731994192764,0.01,3126.5,3125.8,35.0]
[1731994193076,0.01,3126.5,3125.9,3.95091]
[1731994193371,0.01,3126.5,3125.9,7.09190947]
[1731994193570,3.20847,3126.5,3125.9,3.95091]
[1731994193867,3.20847,3126.5,3126.0,35.0]
[1731994194229,0.01,3126.5,3126.0,38.19897]
[1731994194668,0.01,3126.5,3126.0,41.33996947]
[1731994194878,0.01,3126.5,3126.1,3.19885]
[1731994195087,0.01,3126.5,3126.0,41.33996947]
[1731994195632,3.50605,3126.9,3126.0,41.33996947]
[1731994195633,0.01,3126.6,3126.2,3.19876]
[1731994195831,0.01,3126.6,3126.3,0.319876]
[1731994196258,3.20817,3126.8,3126.4,35.0]
[1731994196457,3.20815,3126.8,3126.4,35.0]
[1731994196668,3.20815,3126.8,3126.4,38.14099947]
[1731994197371,3.24010347,3126.8,3126.4,38.14099947]
[1731994197771,0.01,3126.5,3126.4,35.0]
[1731994197976,3.24041347,3126.5,3126.4,35.0]
[1731994201077,3.24041347,3126.5,3125.9,3.95096]
[1731994201772,3.20887,3126.1,3126.0,35.0]
[1731994201961,3.24082347,3126.1,3126.0,35.0]
[1731994202167,0.04195347,3126.1,3126.0,35.0]
[1731994202872,3.24082347,3126.1,3126.0,35.0]
[1731994204096,3.24082347,3126.1,3126.0,36.62109923]
[1731994204953,3.24082347,3126.1,3126.0,1.62109923]
[1731994205150,3.24082347,3126.1,3125.5,4.03058]
[1731994205382,3.24082347,3126.1,3125.6,35.0]
[1731994206302,3.19898,3126.0,3125.6,35.0]
[1731994207004,0.04195347,3126.1,3125.6,35.0]
[1731994207172,3.19897,3126.0,3125.6,35.0]
[1731994207376,3.19928,3125.7,3125.6,35.0]
[1731994207582,0.03195347,3125.7,3125.6,35.0]
[1731994208316,0.04195347,3125.7,3125.6,35.0]
[1731994208667,3.24123347,3125.7,3125.6,35.0]
[1731994208871,0.04195347,3125.7,3125.6,35.0]
[1731994209071,0.03195347,3125.7,3125.6,38.14099947]
[1731994210186,0.03195347,3125.7,3125.6,41.34037947]
[1731994210367,0.03195347,3125.7,3125.6,42.13307947]
[1731994213493,0.03195347,3125.7,3125.6,46.10698135]
[1731994214162,0.03195347,3125.7,3125.6,11.65698135]
[1731994214368,0.03195347,3125.7,3125.6,8.51598188]
[1731994218901,0.03195347,3125.7,3125.6,4.96598188]
[1731994219113,0.03195347,3125.7,3125.6,4.31188]
[1731994219271,0.03195347,3125.7,3125.6,0.3198]
[1731994219473,0.03195347,3125.7,3125.3,3.51948]
[1731994219702,0.03195347,3125.7,3125.5,0.3198]
[1731994220773,0.318,3125.6,3124.8,8.33899904]
[1731994221116,0.318,3125.6,3124.8,6.94]
[1731994221117,3.19971,3125.3,3124.8,6.94]
[1731994221275,3.29174498,3125.3,3124.8,6.94]
[1731994221481,0.03195347,3125.3,3125.0,3.19998]
[1731994221917,0.03195347,3125.3,3124.8,7.954029]
[1731994222214,6.50153498,3125.2,3124.8,6.94]
[1731994222427,6.49170498,3125.1,3124.8,6.94]
[1731994222575,3.20001,3125.0,3124.8,6.94]
[1731994222924,0.03195347,3125.0,3124.8,6.94]
[1731994223413,0.03195347,3125.0,3124.8,7.95404]
[1731994224181,0.03195347,3125.0,3124.8,6.94]
[1731994225980,0.03195347,3125.0,3124.8,10.1402]
[1731994226318,0.03195347,3125.0,3124.9,3.2001]
[1731994226688,0.03195347,3125.0,3124.9,3.9724]
[1731994227189,0.03195347,3125.0,3124.9,4.2922]
[1731994227388,0.03195347,3125.0,3124.9,9.04659321]
[1731994231533,0.03195347,3125.0,3124.9,9.59659321]
[1731994231699,0.03195347,3125.0,3124.9,9.60659321]
[1731994233892,0.03195347,3125.0,3124.9,9.70435684]
[1731994235223,0.01,3126.3,3125.9,3.19907]
[1731994236789,0.01,3126.3,3125.8,10.13916]
[1731994240960,0.308,3126.4,3125.8,6.94]
[1731994240961,3.51707,3125.9,3125.8,6.94]
[1731994241455,6.80565514,3125.9,3125.8,6.94]
[1731994243038,3.51707,3125.9,3125.8,6.94]
[1731994245670,6.80551291,3125.9,3125.8,6.94]
[1731994245820,3.51707,3125.9,3125.8,6.94]
[1731994246449,7.46320149,3125.9,3125.8,6.94]
[1731994246862,3.51707,3125.9,3125.8,6.94]
[1731994248580,3.51707,3125.9,3124.5,3.20048]
[1731994248581,0.01,3123.7,3123.0,0.3198]
[1731994248730,0.01,3123.2,3122.7,0.7994]
[1731994249157,3.20174,3123.3,3122.4,0.63196752]
[1731994249356,0.01,3123.4,3122.5,3.20256]
[1731994249623,0.01,3123.4,3122.4,0.63196752]
[1731994249624,0.01,3123.4,3122.8,3.52197]
[1731994249840,0.01,3123.4,3122.6,3.5222]
[1731994250043,3.21165,3123.4,3122.6,3.2024]
[1731994250255,0.01,3123.4,3122.6,3.2024]
[1731994250639,0.01,3123.4,3122.6,3.20241]
[1731994251339,0.01,3123.4,3122.5,3.0]
[1731994251524,0.01,3123.6,3122.9,3.20205]
[1731994251738,0.01,3123.6,3123.0,0.752]
[1731994251940,0.01,3123.6,3123.0,3.95403]
[1731994254327,0.01,3123.6,3123.0,0.81602434]
[1731994254527,0.01,3123.6,3123.0,4.01806434]
[1731994254971,3.20104,3124.0,3123.4,3.20154]
[1731994254972,0.01,3124.0,3123.4,3.20154]
[1731994255150,0.01,3124.0,3123.5,3.26554409]
[1731994255473,0.01,3124.4,3123.7,4.01538]
[1731994255768,0.01,3124.4,3123.7,4.07939068]
[1731994256073,0.01,3124.4,3123.8,3.20115]
[1731994256269,0.01,3124.4,3123.9,3.26511022]
[1731994256468,0.01,3124.6,3123.9,0.06401022]
[1731994257545,0.01,3124.6,3124.0,3.201]
[1731994258080,3.21041,3124.6,3124.0,3.201]
[1731994258369,0.01,3124.3,3123.9,0.06401022]
[1731994258574,0.01,3124.3,3123.7,0.8141]
[1731994258787,0.01,3124.3,3123.6,0.32655441]
[1731994258927,0.01,3124.1,3123.5,6.20149]
[1731994259579,0.01,3124.1,3123.5,3.20149]
[1731994260080,0.01,3124.1,3123.6,3.20138]
[1731994260643,0.01,3124.1,3123.7,3.20131]
[1731994260848,0.01,3124.1,3123.2,4.39829622]
[1731994261073,0.01,3124.1,3123.2,1.19645622]
[1731994261286,3.21134,3123.7,3122.8,3.97324]
[1731994261573,3.20155,3123.5,3122.9,3.52194]
[1731994262043,0.01,3123.4,3122.9,0.3198]
[1731994262672,0.01,3123.4,3122.9,3.3198]
[1731994263377,3.21169,3123.4,3122.9,1.049096]
[1731994263529,3.21169,3123.4,3122.9,4.049096]
[1731994263759,0.01,3123.4,3122.9,1.049096]
[1731994264374,0.01,3123.4,3122.5,6.31407209]
[1731994264375,0.01,3123.1,3122.4,0.771]
[1731994264564,3.21194,3123.1,3122.5,0.6380895]
[1731994264764,3.21194,3123.1,3122.4,0.771]
[1731994265012,0.01,3123.1,3122.4,0.771]
[1731994265195,0.01,3123.1,3122.6,3.20243]
[1731994265696,0.01,3123.1,3122.6,3.599773]
[1731994266304,3.21175,3123.3,3122.7,3.2023]
[1731994266498,0.01,3123.3,3122.7,3.20231]
[1731994267219,0.01,3123.3,3122.7,3.8825183]
[1731994267668,0.01,3123.1,3122.7,0.6802083]
[1731994267871,3.21196,3123.1,3122.4,3.97363]
[1731994268115,3.20218,3122.9,3122.3,3.0]
[1731994268312,3.20218,3122.9,3122.3,3.702294]
[1731994268469,3.21202,3123.1,3122.3,3.20276]
[1731994268871,0.01,3123.1,3122.3,3.20276]
[1731994269175,0.01,3123.1,3122.1,7.02303]
[1731994269176,3.20205,3123.0,3122.4,3.20265]
[1731994269678,0.01,3123.1,3122.2,1.01345521]
[1731994269906,0.01,3123.1,3122.3,3.20269]
[1731994270121,3.21107,3124.0,3122.2,0.3198]
[1731994270122,3.21249,3122.6,3122.2,0.3198]
[1731994270280,0.01,3122.6,3122.2,0.3198]
[1731994270486,3.20179,3123.3,3120.9,3.20411]
[1731994270487,0.01,3121.7,3120.9,3.20411]
[1731994270694,0.01,3121.7,3121.2,3.20382]
[1731994270880,3.21338,3121.7,3121.0,3.20408]
[1731994271075,3.21338,3121.7,3121.3,35.0]
[1731994271076,0.01,3121.7,3121.3,35.0]
[1731994271417,0.01,3121.3,3120.3,0.8323]
[1731994271721,0.01,3121.3,3120.6,3.20449]
[1731994271722,0.01,3121.0,3120.6,3.20449]
[1731994272272,0.01,3121.0,3120.5,3.20459]
[1731994272677,0.01,3120.8,3120.6,35.0]
[1731994272918,0.01,3120.8,3120.4,3.63106221]
[1731994273425,0.01,3120.8,3120.5,38.20461]
[1731994273593,0.01,3121.2,3120.7,3.2044]